fUSD/lending_fUSD_20260614
["ID","MTS","AMOUNT","RATE_DAILY","PERIOD"]
[425068332,1781448633000,-213.71828316,0.00017711,2]
[425068357,1781448634000,1001.0,0.00029041,120]
[425068383,1781448648000,-500.0,0.00017922,2]
[425068384,1781448649000,-1646.33316802,0.00017922,2]
[425068386,1781448649000,-353.97178919,0.00017922,2]
[425068385,1781448649000,-828.56815161,0.00017922,2]
[425068390,1781448649000,-981.56,0.00017923,2]
[425068387,1781448649000,-284.959536,0.00017923,2]
[425068389,1781448649000,-1333.23212375,0.00017923,2]
[425068392,1781448649000,-2842.34484752,0.00017923,2]
[425068391,1781448649000,-1224.07567483,0.00017923,2]
[425068388,1781448649000,-3929.6139539,0.00017923,2]
[425068414,1781448650000,-500.0,0.00018161,2]
[425068413,1781448650000,-500.0,0.00018161,2]
[425068409,1781448650000,-500.0,0.00018161,2]
[425068410,1781448650000,-500.0,0.00018161,2]
[425068411,1781448650000,-500.0,0.00018161,2]
[425068412,1781448650000,-500.0,0.00018161,2]
[425068408,1781448650000,-500.0,0.00018161,2]
[425068405,1781448650000,-500.0,0.0001816,2]
[425068407,1781448650000,-500.0,0.00018161,2]
[425068406,1781448650000,-1059.05182637,0.0001816,5]
[425068402,1781448650000,-166.66,0.00018111,2]
[425068404,1781448650000,-150.0,0.00018153,2]
[425068401,1781448650000,-353.97178919,0.00018022,2]
[425068399,1781448650000,-500.0,0.00018022,2]
[425068400,1781448650000,-500.0,0.00018022,2]
[425068398,1781448650000,-500.0,0.00018022,2]
[425068396,1781448650000,-500.0,0.00018022,2]
[425068395,1781448650000,-500.0,0.00018022,2]
[425068394,1781448650000,-4646.27566294,0.00018021,2]
[425068393,1781448650000,-460.88782714,0.0001802,5]
[425068397,1781448650000,-500.0,0.00018022,2]
[425068403,1781448650000,-353.97178919,0.00018122,2]
[425068415,1781448650000,-500.0,0.00018161,2]
[425068419,1781448650000,-2964.27,0.00018329,2]
[425068416,1781448650000,-500.0,0.00018161,2]
[425068417,1781448650000,-150.0,0.00018202,2]
[425068440,1781448650000,-462.92129672,0.00019999,2]
[425068439,1781448650000,-323.22914473,0.00019999,2]
[425068437,1781448650000,-500.0,0.00019999,2]
[425068436,1781448650000,-500.0,0.00019999,2]
[425068434,1781448650000,-166.66,0.00019209,2]
[425068435,1781448650000,-500.0,0.00019998,2]
[425068432,1781448650000,-898.17705892,0.00019015,2]
[425068433,1781448650000,-1547.14619404,0.00019015,2]
[425068431,1781448650000,-12201.39674704,0.00019015,2]
[425068438,1781448650000,-500.0,0.00019999,2]
[425068428,1781448650000,-167.54,0.00018825,2]
[425068427,1781448650000,-219.48,0.00018691,2]
[425068429,1781448650000,-166.66,0.00018843,2]
[425068430,1781448650000,-7856.87,0.00018965,2]
[425068423,1781448650000,-592.0,0.0001841,2]
[425068426,1781448650000,-323.34,0.00018651,2]
[425068425,1781448650000,-166.66,0.00018477,2]
[425068424,1781448650000,-223.68,0.00018428,2]
[425068422,1781448650000,-515.96,0.0001838,2]
[425068421,1781448650000,-352.41,0.00018366,2]
[425068420,1781448650000,-200.0,0.0001835,2]
[425068418,1781448650000,-752.56,0.00018254,2]
[425068442,1781448652000,-297.370066,0.0002,2]
[425068445,1781448652000,-198.0,0.0002,2]
[425068443,1781448652000,-153.0,0.0002,2]
[425068444,1781448652000,-350.0,0.0002,2]
[425068447,1781448652000,-1014.0,0.0002,2]
[425068446,1781448652000,-257.0,0.0002,2]
[425068449,1781448652000,-178.87721355,0.0002,2]
[425068448,1781448652000,-161.53818862,0.0002,2]
[425068450,1781448652000,-342.01,0.0002,2]
[425068441,1781448652000,-37.07870328,0.00019999,2]
[425068452,1781448653000,-178.0,0.0002,2]
[425068453,1781448653000,-1365.64209063,0.0002,2]
[425068454,1781448653000,-2911.12797555,0.0002,2]
[425068451,1781448653000,-52.11278645,0.0002,2]
[425068456,1781448653000,-332.51,0.0002,2]
[425068457,1781448653000,-568.53,0.0002,2]
[425068458,1781448653000,-3193.8,0.0002,2]
[425068455,1781448653000,-892.66760487,0.0002,2]
[425068459,1781448666000,-150.0,0.00016514,2]
[425068460,1781448773000,187.491189,0.00027708,120]
[425068461,1781448780000,2935.52497219,0.00027708,120]
[425068462,1781448797000,500.0,0.00027397,120]
[425068463,1781448822000,4688701.33274395,0.00015,2]
[425068464,1781448837000,-1169.79855209,0.00015,2]
[425068466,1781448851000,-1169.79855209,0.00013,2]
[425068467,1781448865000,-317.5731366,0.00013,2]
[425068468,1781448879000,-317.5731366,0.00013,2]
[425068469,1781448880000,1268.2864914,8e-05,2]
[425068470,1781448883000,1174.87212255,0.0003,120]
[425068471,1781448886000,333.1566313,0.0003,120]
[425068472,1781448887000,671.938,0.00030046,120]
[425068473,1781448891000,297.38,0.0002844,120]
[425068474,1781448946000,-283.63615747,0.00012999,2]
[425068476,1781448960000,-216.36384253,0.00012999,2]
[425068477,1781448993000,177.69729544,0.0003,120]
[425068478,1781448995000,209.44295239,0.0003,120]
[425068479,1781449012000,-481.22953184,0.00012999,2]
[425068480,1781449013000,-18.77046816,0.00012999,2]
[425068481,1781449013000,-500.0,0.00012999,2]
[425068482,1781449013000,-500.0,0.00012999,2]
[425068483,1781449013000,-500.0,0.00012999,2]
[425068484,1781449013000,-500.0,0.00012999,2]
[425068486,1781449013000,-500.0,0.00012999,2]
[425068487,1781449013000,-500.0,0.00012999,2]
[425068488,1781449013000,-500.0,0.00012999,2]
[425068485,1781449013000,-500.0,0.00012999,2]
[425068490,1781449013000,-500.0,0.00012999,2]
[425068491,1781449013000,-500.0,0.00012999,2]
[425068493,1781449013000,-500.0,0.00012999,2]
[425068492,1781449013000,-500.0,0.00012999,2]
[425068494,1781449013000,-269.76412374,0.00012999,2]
[425068495,1781449013000,-500.0,0.00012999,2]
[425068497,1781449013000,-500.0,0.00012999,2]
[425068496,1781449013000,-216.06106235,0.00012999,2]
[425068498,1781449013000,-1995.40434575,0.00013,2]
[425068489,1781449013000,-500.0,0.00012999,2]
[425068499,1781449027000,-529.41064285,0.00013,2]
[425068504,1781449028000,-350.0,0.000148,2]
[425068505,1781449028000,-519.26590871,0.000149,2]
[425068503,1781449028000,-172.44,0.00014476,2]
[425068501,1781449028000,-160.0,0.00013002,2]
[425068502,1781449028000,-5427.69216528,0.0001305,2]
[425068500,1781449028000,-1360.8718573,0.00013,2]
[425068506,1781449028000,-1009.73006871,0.000149,2]
[425068507,1781449042000,-312.0562351,0.000125,2]
[425068510,1781449063000,1035.38178031,0.0003,120]
[425068509,1781449063000,217.19485153,0.0003,120]
[425068511,1781449078000,187.491189,0.00027708,120]
[425068512,1781449093000,2919.17433124,0.00030136,120]
[425068515,1781449261000,-155.22489939,0.000115,2]
[425068519,1781449315000,-300.0,0.000115,2]
[425068521,1781449331000,-200.0,0.000115,2]
[425068523,1781449350000,-150.0,0.000117,2]
[425068525,1781449369000,-300.0,0.000119,2]
[425068528,1781449369000,-166.66,0.00012215,2]
[425068526,1781449369000,-150.0,0.00012018,2]
[425068527,1781449369000,-150.0,0.00012137,2]
[425068530,1781449369000,-500.0,0.00012297,2]
[425068529,1781449369000,-150.0,0.00012256,2]
[425068531,1781449369000,-500.0,0.00012297,2]
[425068535,1781449369000,-500.0,0.00012297,2]
[425068534,1781449369000,-500.0,0.00012297,2]
[425068533,1781449369000,-303.36486056,0.00012297,2]
[425068536,1781449369000,-549.39224203,0.00012297,2]
[425068532,1781449369000,-283.07388391,0.00012297,2]
[425068539,1781449369000,-500.0,0.00012297,2]
[425068537,1781449369000,-500.0,0.00012297,2]
[425068549,1781449369000,-204.42778957,0.00012297,2]
[425068547,1781449369000,-500.0,0.00012297,2]
[425068545,1781449369000,-604.40147324,0.00012297,2]
[425068546,1781449369000,-500.0,0.00012297,2]
[425068548,1781449369000,-500.0,0.00012297,2]
[425068543,1781449369000,-500.0,0.00012297,2]
[425068542,1781449369000,-238.54455474,0.00012297,2]
[425068541,1781449369000,-500.0,0.00012297,2]
[425068540,1781449369000,-400.13519595,0.00012297,2]
[425068538,1781449369000,-500.0,0.00012297,2]
[425068544,1781449369000,-500.0,0.00012297,2]
[425068558,1781449371000,-500.0,0.00012297,2]
[425068550,1781449371000,-295.57221043,0.00012297,2]
[425068554,1781449371000,-500.0,0.00012297,2]
[425068552,1781449371000,-500.0,0.00012297,2]
[425068551,1781449371000,-500.0,0.00012297,2]
[425068553,1781449371000,-500.0,0.00012297,2]
[425068555,1781449371000,-500.0,0.00012297,2]
[425068557,1781449371000,-500.0,0.00012297,2]
[425068556,1781449371000,-500.0,0.00012297,2]
[425068562,1781449371000,-500.0,0.00012297,2]
[425068563,1781449371000,-500.0,0.00012297,2]
[425068560,1781449371000,-500.0,0.00012297,2]
[425068561,1781449371000,-500.0,0.00012297,2]
[425068564,1781449371000,-500.0,0.00012297,2]
[425068566,1781449371000,-500.0,0.00012297,2]
[425068567,1781449371000,-500.0,0.00012297,2]
[425068565,1781449371000,-500.0,0.00012297,2]
[425068568,1781449371000,-500.0,0.00012297,2]
[425068569,1781449371000,-500.0,0.00012297,2]
[425068559,1781449371000,-500.0,0.00012297,2]
[425068570,1781449372000,-204.42778957,0.00012297,2]
[425068571,1781449373000,-150.0,0.00012119,2]
[425068572,1781449373000,-150.0,0.00012239,2]
[425068574,1781449373000,-500.0,0.00012297,2]
[425068573,1781449373000,-295.57221043,0.00012297,2]
[425068576,1781449373000,-500.0,0.00012297,2]
[425068577,1781449373000,-150.0,0.00012298,2]
[425068578,1781449373000,-8021.60228911,0.000123,2]
[425068575,1781449373000,-232.82550046,0.00012297,2]
[425068579,1781449374000,-10000.0,0.000123,2]
[425068580,1781449375000,-10000.0,0.000123,2]
[425068581,1781449376000,-8317.32839512,0.000123,2]
[425068582,1781449376000,-216.06106235,0.00012308,2]
[425068583,1781449376000,-200.0,0.00012359,2]
[425068585,1781449376000,-500.0,0.00012638,3]
[425068586,1781449376000,-300.0,0.0001265,2]
[425068587,1781449376000,-299.95054253,0.0001265,2]
[425068584,1781449376000,-166.66,0.00012472,2]
[425068593,1781449377000,-6119.47399889,0.00012893,2]
[425068592,1781449377000,-166.66,0.00012729,2]
[425068589,1781449377000,-300.0,0.0001265,2]
[425068590,1781449377000,-264.28,0.0001267,2]
[425068591,1781449377000,-3088.53,0.00012676,2]
[425068588,1781449377000,-61.05600111,0.0001265,2]
[425068594,1781449378000,-10000.0,0.00012893,2]
[425068595,1781449379000,-7676.95600111,0.00012893,2]
[425068597,1781449379000,-299.99,0.00012893,2]
[425068596,1781449379000,-999.99,0.00012893,2]
[425068598,1781449379000,-1023.06399889,0.00012893,2]
[425068601,1781449380000,-640.15399889,0.00012906,2]
[425068600,1781449380000,-502.64,0.00012893,2]
[425068599,1781449380000,-8857.20600111,0.00012893,2]
[425068604,1781449382000,-318.19055701,0.00013,2]
[425068602,1781449382000,-797.90600111,0.00012906,2]
[425068603,1781449382000,-166.66,0.00012987,2]
[425068605,1781449383000,187.491189,0.00027708,120]
[425068606,1781449385000,423.08053999,0.00012899,2]
[425068607,1781449404000,-166.66,0.00013244,2]
[425068608,1781449415000,1001.0,0.00029041,120]
[425068609,1781449416000,-500.0,0.00012297,2]
[425068610,1781449416000,-500.0,0.00012297,2]
[425068612,1781449416000,-500.0,0.00012297,2]
[425068611,1781449416000,-500.0,0.00012297,2]
[425068613,1781449416000,-500.0,0.00012297,2]
[425068614,1781449416000,-650.0,0.00012297,2]
[425068617,1781449416000,-436.7407421,0.000134,2]
[425068616,1781449416000,-300.0,0.00013322,2]
[425068618,1781449416000,-200.11579896,0.00013411,2]
[425068619,1781449416000,-419.79,0.00013457,2]
[425068615,1781449416000,-250.0,0.00013283,2]
[425068620,1781449457000,-166.66,0.00013501,2]
[425068621,1781449511000,-150.0,0.00013545,2]
[425068623,1781449515000,-150.0,0.00013488,2]
[425068624,1781449515000,-150.0,0.00013488,2]
[425068625,1781449515000,-150.09865947,0.00013488,2]
[425068626,1781449515000,-150.0,0.00013488,2]
[425068622,1781449515000,-150.0,0.00013488,2]
[425068628,1781449515000,-3277.45,0.00013628,2]
[425068629,1781449515000,-163.74,0.000137,2]
[425068630,1781449515000,-1000.0,0.00013725,2]
[425068632,1781449515000,-4295.56704688,0.0001399,2]
[425068631,1781449515000,-300.0,0.00013989,2]
[425068627,1781449515000,-213.14429365,0.0001359,2]
[425068633,1781449516000,-150.0,0.00013488,2]
[425068635,1781449516000,-150.0,0.00013488,2]
[425068634,1781449516000,-150.0,0.00013488,2]
[425068636,1781449516000,-150.0,0.00013737,2]
[425068638,1781449516000,-9250.0,0.0001399,2]
[425068637,1781449516000,-150.0,0.00013987,2]
[425068639,1781449518000,-10000.0,0.0001399,2]
[425068642,1781449519000,-9309.76821533,0.0001399,2]
[425068641,1781449519000,-350.3370201,0.000134,2]
[425068640,1781449519000,-339.89476457,0.00012925,2]
[425068645,1781449520000,-151.52206243,0.00014032,2]
[425068643,1781449520000,-5129.34920661,0.0001399,2]
[425068644,1781449520000,-250.0,0.00014,2]
[425068649,1781449521000,-2069.12873096,0.000142,5]
[425068648,1781449521000,-400.0,0.000142,5]
[425068646,1781449521000,-200.0,0.000141,5]
[425068647,1781449521000,-1800.0,0.000141,5]
[425068650,1781449522000,1053.0,0.00030137,120]
[425068652,1781449564000,-802.75694017,0.000142,5]
[425068653,1781449580000,-500.0,0.00013989,2]
[425068654,1781449580000,-500.0,0.00013989,2]
[425068657,1781449580000,-405.37552572,0.00013989,2]
[425068656,1781449580000,-500.0,0.00013989,2]
[425068655,1781449580000,-500.0,0.00013989,2]
[425068661,1781449580000,-150.0,0.00014237,2]
[425068662,1781449580000,-3988.51014541,0.000143,5]
[425068660,1781449580000,-150.0,0.00014237,2]
[425068663,1781449580000,-500.0,0.000143,5]
[425068659,1781449580000,-150.0,0.00014237,2]
[425068658,1781449580000,-728.11432887,0.000142,5]
[425068664,1781449632000,-500.0,0.00013626,2]
[425068665,1781449633000,-198.15171874,0.00013626,2]
[425068666,1781449633000,-500.0,0.00013626,2]
[425068667,1781449633000,-428.69143457,0.00013626,2]
[425068668,1781449689000,187.491189,0.00027708,120]
[425068680,1781449798000,-560.64442815,0.00013625,2]
[425068670,1781449798000,-500.0,0.00013625,2]
[425068673,1781449798000,-500.0,0.00013625,2]
[425068681,1781449798000,-323.11222296,0.00013625,2]
[425068672,1781449798000,-405.15543763,0.00013625,2]
[425068674,1781449798000,-500.0,0.00013625,2]
[425068671,1781449798000,-500.0,0.00013625,2]
[425068675,1781449798000,-500.0,0.00013625,2]
[425068677,1781449798000,-401.10863587,0.00013625,2]
[425068679,1781449798000,-560.64442815,0.00013625,2]
[425068676,1781449798000,-500.0,0.00013625,2]
[425068678,1781449798000,-649.51083512,0.00013625,2]
[425068693,1781449799000,-560.64442815,0.00013625,2]
[425068687,1781449799000,-560.64442815,0.00013625,2]
[425068691,1781449799000,-560.64442815,0.00013625,2]
[425068689,1781449799000,-560.64442815,0.00013625,2]
[425068690,1781449799000,-560.64442815,0.00013625,2]
[425068688,1781449799000,-560.64442815,0.00013625,2]
[425068704,1781449799000,-560.64442815,0.00013625,2]
[425068685,1781449799000,-560.64442815,0.00013625,2]
[425068684,1781449799000,-560.64442815,0.00013625,2]
[425068682,1781449799000,-560.64442815,0.00013625,2]
[425068683,1781449799000,-560.64442815,0.00013625,2]
[425068692,1781449799000,-560.64442815,0.00013625,2]
[425068686,1781449799000,-560.64442815,0.00013625,2]
[425068694,1781449799000,-560.64442815,0.00013625,2]
[425068708,1781449799000,-560.64442815,0.00013625,2]
[425068696,1781449799000,-560.64442815,0.00013625,2]
[425068709,1781449799000,-560.64442815,0.00013625,2]
[425068710,1781449799000,-560.64442815,0.00013625,2]
[425068707,1781449799000,-560.64442815,0.00013625,2]
[425068695,1781449799000,-560.64442815,0.00013625,2]
[425068705,1781449799000,-560.64442815,0.00013625,2]
[425068702,1781449799000,-560.64442815,0.00013625,2]
[425068706,1781449799000,-560.64442815,0.00013625,2]
[425068701,1781449799000,-560.64442815,0.00013625,2]
[425068700,1781449799000,-560.64442815,0.00013625,2]
[425068699,1781449799000,-560.64442815,0.00013625,2]
[425068698,1781449799000,-560.64442815,0.00013625,2]
[425068697,1781449799000,-560.64442815,0.00013625,2]
[425068703,1781449799000,-560.64442815,0.00013625,2]
[425068719,1781449800000,-560.64442815,0.00013625,2]
[425068723,1781449800000,-560.64442815,0.00013625,2]
[425068722,1781449800000,-560.64442815,0.00013625,2]
[425068721,1781449800000,-560.64442815,0.00013625,2]
[425068720,1781449800000,-560.64442815,0.00013625,2]
[425068718,1781449800000,-560.64442815,0.00013625,2]
[425068725,1781449800000,-560.64442815,0.00013625,2]
[425068716,1781449800000,-560.64442815,0.00013625,2]
[425068714,1781449800000,-560.64442815,0.00013625,2]
[425068712,1781449800000,-560.64442815,0.00013625,2]
[425068713,1781449800000,-560.64442815,0.00013625,2]
[425068711,1781449800000,-560.64442815,0.00013625,2]
[425068717,1781449800000,-560.64442815,0.00013625,2]
[425068724,1781449800000,-560.64442815,0.00013625,2]
[425068715,1781449800000,-560.64442815,0.00013625,2]
[425068728,1781449800000,-560.64442815,0.00013625,2]
[425068740,1781449800000,-557.693668,0.00013625,2]
[425068738,1781449800000,-557.693668,0.00013625,2]
[425068737,1781449800000,-557.693668,0.00013625,2]
[425068736,1781449800000,-557.693668,0.00013625,2]
[425068739,1781449800000,-557.693668,0.00013625,2]
[425068735,1781449800000,-557.693668,0.00013625,2]
[425068726,1781449800000,-560.64442815,0.00013625,2]
[425068734,1781449800000,-557.693668,0.00013625,2]
[425068732,1781449800000,-557.693668,0.00013625,2]
[425068731,1781449800000,-560.64442815,0.00013625,2]
[425068730,1781449800000,-560.64442815,0.00013625,2]
[425068729,1781449800000,-560.64442815,0.00013625,2]
[425068727,1781449800000,-560.64442815,0.00013625,2]
[425068733,1781449800000,-557.693668,0.00013625,2]
[425068752,1781449801000,-557.693668,0.00013625,2]
[425068751,1781449801000,-557.693668,0.00013625,2]
[425068750,1781449801000,-557.693668,0.00013625,2]
[425068749,1781449801000,-557.693668,0.00013625,2]
[425068748,1781449801000,-557.693668,0.00013625,2]
[425068745,1781449801000,-557.693668,0.00013625,2]
[425068743,1781449801000,-557.693668,0.00013625,2]
[425068746,1781449801000,-557.693668,0.00013625,2]
[425068744,1781449801000,-557.693668,0.00013625,2]
[425068742,1781449801000,-557.693668,0.00013625,2]
[425068741,1781449801000,-557.693668,0.00013625,2]
[425068754,1781449801000,-557.693668,0.00013625,2]
[425068747,1781449801000,-557.693668,0.00013625,2]
[425068755,1781449801000,-557.693668,0.00013625,2]
[425068753,1781449801000,-557.693668,0.00013625,2]
[425068757,1781449801000,-557.693668,0.00013625,2]
[425068756,1781449801000,-557.693668,0.00013625,2]
[425068770,1781449801000,-552.62372556,0.00013625,2]
[425068769,1781449801000,-552.62372556,0.00013625,2]
[425068768,1781449801000,-552.62372556,0.00013625,2]
[425068766,1781449801000,-552.62372556,0.00013625,2]
[425068765,1781449801000,-552.62372556,0.00013625,2]
[425068764,1781449801000,-552.62372556,0.00013625,2]
[425068767,1781449801000,-552.62372556,0.00013625,2]
[425068761,1781449801000,-552.62372556,0.00013625,2]
[425068762,1781449801000,-552.62372556,0.00013625,2]
[425068760,1781449801000,-552.62372556,0.00013625,2]
[425068758,1781449801000,-557.693668,0.00013625,2]
[425068759,1781449801000,-557.693668,0.00013625,2]
[425068763,1781449801000,-552.62372556,0.00013625,2]
[425068781,1781449802000,-500.0,0.00013699,2]
[425068785,1781449802000,-3201.64,0.00013771,2]
[425068786,1781449802000,-1728.3,0.00013795,2]
[425068784,1781449802000,-1617.55,0.0001375,2]
[425068782,1781449802000,-500.0,0.00013699,2]
[425068783,1781449802000,-500.0,0.00013699,2]
[425068780,1781449802000,-500.0,0.00013699,2]
[425068778,1781449802000,-500.0,0.00013699,2]
[425068772,1781449802000,-150.38,0.0001364,2]
[425068777,1781449802000,-500.0,0.00013699,2]
[425068775,1781449802000,-500.0,0.00013699,2]
[425068776,1781449802000,-500.0,0.00013699,2]
[425068774,1781449802000,-500.0,0.00013699,2]
[425068773,1781449802000,-462.87,0.00013657,2]
[425068771,1781449802000,-260.81337438,0.00013633,2]
[425068787,1781449802000,-150.0,0.00013796,2]
[425068779,1781449802000,-295.82552627,0.00013699,2]
[425068788,1781449802000,-150.0,0.00013932,2]
[425068803,1781449802000,-2000.0,0.00014613,2]
[425068790,1781449802000,-3300.0,0.000141,5]
[425068807,1781449802000,-1297.71,0.00014633,2]
[425068789,1781449802000,-2046.92027477,0.00014045,2]
[425068806,1781449802000,-500.0,0.00014633,2]
[425068804,1781449802000,-500.0,0.00014633,2]
[425068802,1781449802000,-3300.0,0.000146,5]
[425068801,1781449802000,-4759.1,0.00014599,2]
[425068800,1781449802000,-649.60350213,0.00014553,2]
[425068799,1781449802000,-16800.0,0.000145,5]
[425068805,1781449802000,-500.0,0.00014633,2]
[425068797,1781449802000,-13400.0,0.000144,5]
[425068796,1781449802000,-1241.14411301,0.000144,2]
[425068794,1781449802000,-208.35194552,0.00014396,2]
[425068795,1781449802000,-10525.48393101,0.000144,2]
[425068793,1781449802000,-10486.0846559,0.0001439,2]
[425068792,1781449802000,-10100.0,0.000143,5]
[425068791,1781449802000,-6700.0,0.000142,5]
[425068798,1781449802000,-150.0,0.00014487,2]
[425068821,1781449803000,-3821.62124209,0.0001475,2]
[425068818,1781449803000,-3821.62124211,0.00014725,2]
[425068819,1781449803000,-13121.09722604,0.00014736,2]
[425068820,1781449803000,-150.0,0.00014737,2]
[425068816,1781449803000,-3300.0,0.000147,5]
[425068817,1781449803000,-970.22122813,0.00014703,2]
[425068815,1781449803000,-173.3,0.000147,5]
[425068812,1781449803000,-500.0,0.00014633,2]
[425068813,1781449803000,-173.3,0.000147,5]
[425068810,1781449803000,-500.0,0.00014633,2]
[425068811,1781449803000,-500.0,0.00014633,2]
[425068809,1781449803000,-944.45,0.00014633,2]
[425068808,1781449803000,-448.02690944,0.00014633,2]
[425068823,1781449803000,-13121.09722596,0.00014772,2]
[425068814,1781449803000,-173.3,0.000147,5]
[425068824,1781449803000,-13121.09722596,0.00014791,2]
[425068838,1781449803000,-1296.51463889,0.00014861,2]
[425068825,1781449803000,-10276.62766464,0.00014798,2]
[425068840,1781449803000,-6035.97151163,0.00014861,2]
[425068839,1781449803000,-3421.52264489,0.00014861,2]
[425068837,1781449803000,-23347.08111307,0.00014856,2]
[425068836,1781449803000,-13121.09722596,0.00014845,2]
[425068835,1781449803000,-23347.08111307,0.00014844,2]
[425068832,1781449803000,-13121.09722596,0.00014827,2]
[425068834,1781449803000,-500.0,0.00014844,2]
[425068822,1781449803000,-13121.09722596,0.00014754,2]
[425068830,1781449803000,-23347.08111307,0.00014822,2]
[425068831,1781449803000,-260.8390885,0.00014826,2]
[425068829,1781449803000,-23347.08111307,0.00014811,2]
[425068826,1781449803000,-23347.08111307,0.000148,2]
[425068828,1781449803000,-13121.09722596,0.00014809,2]
[425068827,1781449803000,-3300.0,0.000148,5]
[425068833,1781449803000,-23347.08111307,0.00014833,2]
[425068856,1781449804000,-263.38040178,0.000149,2]
[425068855,1781449804000,-212.44710486,0.000149,2]
[425068854,1781449804000,-500.0,0.00014899,2]
[425068853,1781449804000,-4759.1,0.00014899,2]
[425068851,1781449804000,-500.0,0.00014899,2]
[425068852,1781449804000,-588.65,0.00014899,2]
[425068850,1781449804000,-500.0,0.00014899,2]
[425068848,1781449804000,-23347.08111307,0.00014889,2]
[425068847,1781449804000,-13121.09722596,0.00014882,2]
[425068846,1781449804000,-23347.08111307,0.00014878,2]
[425068844,1781449804000,-23347.08111307,0.00014867,2]
[425068845,1781449804000,-18357.69303763,0.00014869,2]
[425068843,1781449804000,-13121.09722596,0.00014864,2]
[425068857,1781449804000,-151.0,0.000149,2]
[425068842,1781449804000,-12217.1643,0.00014861,2]
[425068849,1781449804000,-1000.0,0.00014899,2]
[425068841,1781449804000,-9029.45239365,0.00014861,2]
[425068859,1781449804000,-13121.09722596,0.000149,2]
[425068860,1781449804000,-3300.0,0.000149,5]
[425068858,1781449804000,-25000.0,0.000149,3]
[425068876,1781449804000,-600.0,0.00014988,2]
[425068875,1781449804000,-300.0,0.00014988,2]
[425068874,1781449804000,-150.00000001,0.00014986,2]
[425068873,1781449804000,-150.0,0.00014986,2]
[425068872,1781449804000,-150.0,0.00014986,2]
[425068871,1781449804000,-263.02020827,0.00014986,2]
[425068869,1781449804000,-1023.09,0.00014985,2]
[425068877,1781449804000,-600.0,0.00014988,2]
[425068867,1781449804000,-6280.0,0.00014959,2]
[425068866,1781449804000,-23347.08111307,0.000149,2]
[425068868,1781449804000,-709.26,0.00014985,2]
[425068865,1781449804000,-2462.13628314,0.000149,2]
[425068864,1781449804000,-1422.0775323,0.000149,2]
[425068863,1781449804000,-666.02755504,0.000149,2]
[425068862,1781449804000,-17008.40095473,0.000149,2]
[425068861,1781449804000,-5760.96686111,0.000149,2]
[425068870,1781449804000,-150.0,0.00014986,2]
[425068890,1781449805000,-500.0,0.00014999,2]
[425068894,1781449805000,-500.0,0.00014999,2]
[425068891,1781449805000,-500.0,0.00014999,2]
[425068892,1781449805000,-500.0,0.00014999,2]
[425068889,1781449805000,-500.0,0.00014998,2]
[425068888,1781449805000,-500.0,0.00014998,2]
[425068887,1781449805000,-500.0,0.00014998,2]
[425068881,1781449805000,-299.64858955,0.00014989,2]
[425068883,1781449805000,-500.0,0.00014998,2]
[425068885,1781449805000,-944.45,0.00014998,2]
[425068884,1781449805000,-1297.71,0.00014998,2]
[425068882,1781449805000,-500.0,0.00014998,2]
[425068880,1781449805000,-250.0,0.00014988,2]
[425068879,1781449805000,-199.57582738,0.00014988,2]
[425068878,1781449805000,-600.0,0.00014988,2]
[425068886,1781449805000,-500.0,0.00014998,2]